fUST/lending_fUST_20240227
["ID","MTS","AMOUNT","RATE_DAILY","PERIOD"]
[315368503,1708991438676,-540.72551016,0.00019177,2]
[315368505,1708991438685,-500.0,0.00019178,2]
[315368507,1708991438694,-151.0,0.00019178,2]
[315368509,1708991438703,-500.0,0.00019178,2]
[315368511,1708991438712,-500.0,0.00019178,2]
[315368513,1708991438721,-500.0,0.00019178,2]
[315368515,1708991438730,-291.00212191,0.00019178,2]
[315368517,1708991438738,-500.0,0.00019178,2]
[315368519,1708991438748,-665.88,0.00019178,2]
[315368521,1708991438757,-1101.12,0.00019178,2]
[315368523,1708991438767,-500.0,0.00019178,2]
[315368525,1708991438776,-500.0,0.00019178,2]
[315368528,1708991438785,-500.0,0.00019178,2]
[315368529,1708991438795,-500.0,0.00019178,2]
[315368531,1708991438804,-500.0,0.00019178,2]
[315368533,1708991438814,-500.60959108,0.00019178,2]
[315368535,1708991438824,-513.67629886,0.00019178,2]
[315368537,1708991438833,-500.91970631,0.00019178,2]
[315368539,1708991438843,-500.0,0.00019178,2]
[315368541,1708991438851,-500.0,0.00019178,2]
[315368543,1708991438860,-500.0,0.00019178,2]
[315368544,1708991438870,-500.0,0.00019178,2]
[315368545,1708991438878,-500.0,0.00019178,2]
[315368546,1708991438888,-500.0,0.00019178,2]
[315368547,1708991438896,-503.94439511,0.00019178,2]
[315368548,1708991438905,-500.0,0.00019178,2]
[315368549,1708991438914,-500.0,0.00019178,2]
[315368550,1708991438924,-500.0,0.00019178,2]
[315368551,1708991438933,-500.0,0.00019178,2]
[315368552,1708991438942,-601.83460681,0.00019178,2]
[315368553,1708991438951,-500.0,0.00019178,2]
[315368554,1708991438960,-500.0,0.00019178,2]
[315368555,1708991438969,-500.0,0.00019178,2]
[315368556,1708991438978,-1147.54,0.00019178,2]
[315368557,1708991438987,-550.55,0.00019178,2]
[315368558,1708991438996,-500.0,0.00019178,2]
[315368559,1708991439005,-500.0,0.00019178,2]
[315368560,1708991439017,-500.0,0.00019178,2]
[315368561,1708991439025,-1635.36,0.00019178,2]
[315368562,1708991439034,-500.0,0.00019178,2]
[315368563,1708991439043,-502.47764759,0.00019178,2]
[315368564,1708991439052,-500.0,0.00019178,2]
[315368565,1708991439061,-500.0,0.00019178,2]
[315368566,1708991439070,-156.1005894,0.00019178,2]
[315368567,1708991439079,-500.0,0.00019178,2]
[315368568,1708991439087,-626.71,0.00019178,2]
[315368569,1708991439096,-527.74951966,0.00019178,2]
[315368570,1708991439105,-503.11301008,0.00019178,2]
[315368571,1708991439114,-481.7489262,0.00019178,2]
[315368572,1708991439123,-500.0,0.00019178,2]
[315368573,1708991439132,-500.0,0.00019178,2]
[315368574,1708991439141,-501.8316353,0.00019178,2]
[315368575,1708991439150,-303.36233745,0.00019178,2]
[315368576,1708991439160,-232.98568571,0.00019178,2]
[315368577,1708991439169,-500.0,0.00019178,2]
[315368578,1708991439178,-500.0,0.00019178,2]
[315368579,1708991439187,-500.0,0.00019178,2]
[315368580,1708991439196,-500.0,0.00019178,2]
[315368581,1708991439206,-500.0,0.00019178,2]
[315368582,1708991439215,-500.0,0.00019178,2]
[315368583,1708991439224,-500.0,0.00019178,2]
[315368584,1708991439233,-500.0,0.00019178,2]
[315368585,1708991439242,-500.0,0.00019178,2]
[315368586,1708991439251,-500.0,0.00019178,2]
[315368587,1708991439260,-500.0,0.00019178,2]
[315368588,1708991439269,-500.0,0.00019178,2]
[315368589,1708991439277,-500.0,0.00019178,2]
[315368590,1708991439286,-500.0,0.00019178,2]
[315368591,1708991439295,-500.0,0.00019178,2]
[315368592,1708991439305,-500.0,0.00019178,2]
[315368593,1708991439314,-500.0,0.00019178,2]
[315368594,1708991439429,-500.0,0.00019178,2]
[315368595,1708991439439,-500.0,0.00019178,2]
[315368596,1708991439449,-500.0,0.00019178,2]
[315368597,1708991439458,-502.00608495,0.00019178,2]
[315368598,1708991439468,-1105.83,0.00019178,2]
[315368599,1708991439477,-500.0,0.00019178,2]
[315368600,1708991439486,-500.0,0.00019178,2]
[315368601,1708991439495,-500.0,0.00019178,2]
[315368602,1708991439504,-500.0,0.00019178,2]
[315368603,1708991439513,-500.0,0.00019178,2]
[315368604,1708991439522,-1430.55,0.00019178,2]
[315368605,1708991439530,-1938.41,0.00019178,2]
[315368606,1708991439539,-500.0,0.00019178,2]
[315368607,1708991439548,-500.0,0.00019178,2]
[315368608,1708991439557,-500.0,0.00019178,2]
[315368609,1708991439567,-500.0,0.00019178,2]
[315368610,1708991439577,-500.0,0.00019178,2]
[315368611,1708991439586,-1137.86,0.00019178,2]
[315368612,1708991439595,-500.0,0.00019178,2]
[315368613,1708991439604,-500.0,0.00019178,2]
[315368614,1708991439613,-500.0,0.00019178,2]
[315368615,1708991439622,-171.64068098,0.00019178,2]
[315368616,1708991439631,-502.13232332,0.00019178,2]
[315368617,1708991439640,-1224.94,0.00019178,2]
[315368618,1708991439649,-500.0,0.00019178,2]
[315368619,1708991439658,-500.0,0.00019178,2]
[315368620,1708991439668,-500.0,0.00019178,2]
[315368621,1708991439677,-500.0,0.00019178,2]
[315368622,1708991439686,-500.0,0.00019178,2]
[315368623,1708991439695,-500.0,0.00019178,2]
[315368624,1708991439703,-500.0,0.00019178,2]
[315368625,1708991439712,-793.97,0.00019178,2]
[315368626,1708991439721,-500.0,0.00019178,2]
[315368627,1708991439729,-500.0,0.00019178,2]
[315368628,1708991439738,-500.0,0.00019178,2]
[315368629,1708991439747,-1937.49,0.00019178,2]
[315368630,1708991439756,-500.0,0.00019178,2]
[315368631,1708991439766,-500.0,0.00019178,2]
[315368632,1708991439776,-500.0,0.00019178,2]
[315368633,1708991439785,-500.0,0.00019178,2]
[315368634,1708991439794,-500.0,0.00019178,2]
[315368635,1708991439803,-429.14374354,0.00019178,2]
[315368636,1708991439813,-500.0,0.00019178,2]
[315368637,1708991439822,-500.0,0.00019178,2]
[315368638,1708991439831,-500.0,0.00019178,2]
[315368639,1708991439840,-612.23784616,0.00019178,2]
[315368640,1708991439849,-500.0,0.00019178,2]
[315368641,1708991439859,-500.0,0.00019178,2]
[315368642,1708991439868,-500.0,0.00019178,2]
[315368643,1708991439877,-611.7,0.00019178,2]
[315368644,1708991439886,-501.00129828,0.00019178,2]
[315368645,1708991439895,-9518.34,0.00019178,2]
[315368646,1708991439904,-500.0,0.00019178,2]
[315368647,1708991439914,-500.0,0.00019178,2]
[315368648,1708991439923,-500.0,0.00019178,2]
[315368649,1708991439932,-1106.32,0.00019178,2]
[315368650,1708991439941,-3224.58,0.00019178,2]
[315368651,1708991439950,-500.0,0.00019178,2]
[315368652,1708991439959,-500.0,0.00019178,2]
[315368653,1708991439968,-500.0,0.00019178,2]
[315368654,1708991439977,-500.0,0.00019178,2]
[315368655,1708991439986,-500.0,0.00019178,2]
[315368656,1708991439995,-604.59,0.00019178,2]
[315368657,1708991440005,-500.0,0.00019178,2]
[315368658,1708991440015,-500.0,0.00019178,2]
[315368659,1708991440024,-500.0,0.00019178,2]
[315368660,1708991440033,-500.0,0.00019178,2]
[315368661,1708991440043,-500.0,0.00019178,2]
[315368662,1708991440052,-500.0,0.00019178,2]
[315368663,1708991440061,-500.0,0.00019178,2]
[315368664,1708991440070,-2615.28,0.00019178,2]
[315368665,1708991440079,-500.0,0.00019178,2]
[315368666,1708991440089,-1643.98,0.00019178,2]
[315368667,1708991440098,-534.34,0.00019178,2]
[315368668,1708991440107,-1968.58,0.00019178,2]
[315368669,1708991440116,-500.0,0.00019178,2]
[315368670,1708991440125,-414.86935589,0.00019178,2]
[315368671,1708991440134,-500.0,0.00019178,2]
[315368672,1708991440143,-504.45809868,0.00019178,2]
[315368673,1708991440152,-504.22081806,0.00019178,2]
[315368674,1708991440163,-1000.0,0.00019178,2]
[315368675,1708991440172,-500.0,0.00019178,2]
[315368676,1708991440181,-500.0,0.00019178,2]
[315368677,1708991440190,-500.0,0.00019178,2]
[315368678,1708991440199,-500.0,0.00019178,2]
[315368679,1708991440208,-500.0,0.00019178,2]
[315368680,1708991440217,-500.73988973,0.00019178,2]
[315368681,1708991440226,-2347.07,0.00019178,2]
[315368682,1708991440235,-1815.9,0.00019178,2]
[315368683,1708991440244,-500.0,0.00019178,2]
[315368684,1708991440253,-17108.01,0.00019178,2]
[315368685,1708991440263,-500.0,0.00019178,2]
[315368686,1708991440273,-500.0,0.00019178,2]
[315368687,1708991440282,-500.0,0.00019178,2]
[315368688,1708991440291,-500.0,0.00019178,2]
[315368689,1708991440300,-500.0,0.00019178,2]
[315368690,1708991440309,-500.0,0.00019178,2]
[315368691,1708991440318,-500.0,0.00019178,2]
[315368692,1708991440327,-501.85263397,0.00019178,2]
[315368693,1708991440335,-500.0,0.00019178,2]
[315368694,1708991440345,-500.0,0.00019178,2]
[315368695,1708991440353,-500.0,0.00019178,2]
[315368696,1708991440362,-500.0,0.00019178,2]
[315368697,1708991440371,-500.75121153,0.00019178,2]
[315368698,1708991440379,-500.0,0.00019178,2]
[315368699,1708991440389,-1990.31,0.00019178,2]
[315368700,1708991440398,-500.0,0.00019178,2]
[315368701,1708991440407,-500.0,0.00019178,2]
[315368702,1708991440416,-500.95156655,0.00019178,2]
[315368703,1708991440426,-503.35756395,0.00019178,2]
[315368704,1708991440438,-500.0,0.00019178,2]
[315368705,1708991440447,-500.0,0.00019178,2]
[315368706,1708991440457,-1507.9,0.00019178,2]
[315368707,1708991440467,-262.021544,0.00019178,2]
[315368708,1708991440478,-500.0,0.00019178,2]
[315368709,1708991440487,-500.0,0.00019178,2]
[315368710,1708991440496,-500.0,0.00019178,2]
[315368711,1708991440505,-500.0,0.00019178,2]
[315368712,1708991440516,-570.32,0.00019178,2]
[315368713,1708991440525,-717.78,0.00019178,2]
[315368714,1708991440535,-717.78,0.00019178,2]
[315368715,1708991440544,-717.78,0.00019178,2]
[315368716,1708991440554,-500.0,0.00019178,2]
[315368717,1708991440563,-7320.56,0.00019178,2]
[315368718,1708991440573,-500.0,0.00019178,2]
[315368719,1708991440583,-1772.46,0.00019178,2]
[315368720,1708991440591,-500.0,0.00019178,2]
[315368721,1708991440600,-407.07496892,0.00019178,2]
[315368722,1708991440610,-436.38596595,0.00019178,2]
[315368723,1708991440619,-3218.84,0.00019178,2]
[315368724,1708991440628,-500.0,0.00019178,2]
[315368725,1708991440637,-16401.92,0.00019178,2]
[315368726,1708991440646,-500.829993,0.00019178,2]
[315368727,1708991440655,-345.4447297,0.00019178,2]
[315368728,1708991440664,-500.0,0.00019178,2]
[315368729,1708991440673,-500.0,0.00019178,2]
[315368730,1708991440682,-500.0,0.00019178,2]
[315368731,1708991440691,-500.0,0.00019178,2]
[315368732,1708991440700,-949.56,0.00019178,2]
[315368733,1708991440709,-500.0,0.00019178,2]
[315368734,1708991440718,-323.5389326,0.00019178,2]
[315368735,1708991440727,-2549.21,0.00019178,2]
[315368736,1708991440736,-500.0,0.00019178,2]
[315368737,1708991440745,-3092.23,0.00019178,2]
[315368738,1708991440753,-276.13419307,0.00019178,2]
[315368739,1708991440763,-500.0,0.00019178,2]
[315368740,1708991440772,-3493.17,0.00019178,2]
[315368741,1708991440781,-500.0,0.00019178,2]
[315368742,1708991440790,-168.810606,0.00019178,2]
[315368743,1708991440799,-166.666666,0.00019178,2]
[315368744,1708991440808,-173.182397,0.00019178,2]
[315368745,1708991440817,-167.871908,0.00019178,2]
[315368746,1708991440827,-328.8845409,0.00019352,2]
[315368747,1708991440836,-1519.07055314,0.00019451,2]
[315368748,1708991440845,-717.78,0.00019451,2]
[315368749,1708991440854,-717.78,0.00019451,2]
[315368750,1708991440863,-329.06892386,0.00019452,2]
[315368751,1708991440872,-500.0,0.00019452,2]
[315368752,1708991440881,-500.0,0.00019452,2]
[315368753,1708991440890,-500.0,0.00019452,2]
[315368754,1708991440899,-665.88,0.00019452,2]
[315368755,1708991440908,-1101.12,0.00019452,2]
[315368756,1708991440918,-500.35866528,0.00019452,2]
[315368757,1708991440927,-509.02416271,0.00019452,2]
[315368758,1708991440936,-500.0,0.00019452,2]
[315368759,1708991440945,-500.0,0.00019452,2]
[315368760,1708991440954,-500.0,0.00019452,2]
[315368761,1708991440963,-500.0,0.00019452,2]
[315368762,1708991440972,-500.0,0.00019452,2]
[315368763,1708991440981,-500.0,0.00019452,2]
[315368764,1708991440990,-1147.54,0.00019452,2]
[315368765,1708991440999,-550.55,0.00019452,2]
[315368766,1708991441008,-500.0,0.00019452,2]
[315368767,1708991441018,-500.0,0.00019452,2]
[315368768,1708991441027,-500.0,0.00019452,2]
[315368769,1708991441037,-1635.36,0.00019452,2]
[315368770,1708991441046,-500.0,0.00019452,2]
[315368771,1708991441055,-619.10188517,0.00019452,2]
[315368772,1708991441064,-500.0,0.00019452,2]
[315368773,1708991441074,-626.71,0.00019452,2]
[315368774,1708991441083,-500.0,0.00019452,2]
[315368775,1708991441092,-500.0,0.00019452,2]
[315368776,1708991441101,-341.57797988,0.00019452,2]
[315368777,1708991441110,-500.0,0.00019452,2]
[315368778,1708991441118,-500.0,0.00019452,2]
[315368779,1708991441128,-417.97011128,0.00019452,2]
[315368780,1708991441137,-500.0,0.00019452,2]
[315368781,1708991441146,-418.52836242,0.00019452,2]
[315368782,1708991441155,-500.0,0.00019452,2]
[315368783,1708991441164,-500.0,0.00019452,2]
[315368784,1708991441173,-500.0,0.00019452,2]
[315368785,1708991441182,-500.0,0.00019452,2]
[315368786,1708991441190,-500.0,0.00019452,2]
[315368787,1708991441200,-500.0,0.00019452,2]
[315368788,1708991441209,-1105.83,0.00019452,2]
[315368789,1708991441218,-500.0,0.00019452,2]
[315368790,1708991441227,-500.0,0.00019452,2]
[315368791,1708991441236,-500.0,0.00019452,2]
[315368792,1708991441245,-1430.55,0.00019452,2]
[315368793,1708991441254,-1938.41,0.00019452,2]
[315368794,1708991441263,-500.0,0.00019452,2]
[315368795,1708991441272,-500.0,0.00019452,2]
[315368796,1708991441281,-1137.86,0.00019452,2]
[315368797,1708991441290,-500.0,0.00019452,2]
[315368798,1708991441299,-500.0,0.00019452,2]
[315368799,1708991441313,-500.0,0.00019452,2]
[315368800,1708991441322,-1224.94,0.00019452,2]
[315368801,1708991441331,-500.0,0.00019452,2]
[315368802,1708991441339,-596.53827503,0.00019452,2]
[315368803,1708991441348,-501.25023183,0.00019452,2]
[315368804,1708991441358,-500.0,0.00019452,2]
[315368805,1708991441367,-500.0,0.00019452,2]
[315368806,1708991441375,-306.73743767,0.00019452,2]
[315368807,1708991441384,-793.97,0.00019452,2]
[315368808,1708991441393,-529.94195677,0.00019452,2]
[315368809,1708991441402,-500.0,0.00019452,2]
[315368810,1708991441411,-1937.49,0.00019452,2]
[315368811,1708991441420,-500.0,0.00019452,2]
[315368812,1708991441429,-500.0,0.00019452,2]
[315368813,1708991441438,-500.0,0.00019452,2]
[315368814,1708991441448,-500.0,0.00019452,2]
[315368815,1708991441457,-500.0,0.00019452,2]
[315368816,1708991441470,-500.0,0.00019452,2]
[315368817,1708991441479,-501.79848938,0.00019452,2]
[315368818,1708991441488,-443.78647685,0.00019452,2]
[315368819,1708991441497,-500.0,0.00019452,2]
[315368820,1708991441506,-500.0,0.00019452,2]
[315368821,1708991441517,-611.7,0.00019452,2]
[315368822,1708991441526,-9518.34,0.00019452,2]
[315368823,1708991441536,-500.0,0.00019452,2]
[315368824,1708991441544,-500.0,0.00019452,2]
[315368825,1708991441553,-1106.32,0.00019452,2]
[315368826,1708991441563,-3224.58,0.00019452,2]
[315368827,1708991441572,-501.25122817,0.00019452,2]
[315368828,1708991441582,-500.0,0.00019452,2]
[315368829,1708991441592,-500.0,0.00019452,2]
[315368831,1708991441602,-501.23926151,0.00019452,2]
[315368833,1708991441613,-604.59,0.00019452,2]
[315368835,1708991441622,-500.0,0.00019452,2]
[315368837,1708991441631,-500.0,0.00019452,2]
[315368839,1708991441641,-500.0,0.00019452,2]
[315368841,1708991441650,-500.0,0.00019452,2]
[315368843,1708991441660,-2615.28,0.00019452,2]
[315368845,1708991441669,-500.0,0.00019452,2]
[315368847,1708991441679,-1643.98,0.00019452,2]
[315368849,1708991441687,-534.34,0.00019452,2]
[315368852,1708991441697,-500.0,0.00019452,2]
[315368854,1708991441707,-1968.58,0.00019452,2]
[315368856,1708991441716,-500.0,0.00019452,2]
[315368858,1708991441724,-1000.0,0.00019452,2]
[315368860,1708991441733,-500.0,0.00019452,2]
[315368871,1708991441827,-500.0,0.00019452,2]
[315368873,1708991441837,-497.00174819,0.00019452,2]
[315368875,1708991441846,-500.0,0.00019452,2]
[315368877,1708991441855,-500.0,0.00019452,2]
[315368879,1708991441864,-2347.07,0.00019452,2]
[315368881,1708991441873,-1815.9,0.00019452,2]
[315368883,1708991441882,-500.0,0.00019452,2]
[315368885,1708991441891,-17108.01,0.00019452,2]
[315368887,1708991441899,-500.0,0.00019452,2]
[315368888,1708991441908,-287.05748937,0.00019452,2]
[315368889,1708991441918,-500.0,0.00019452,2]
[315368890,1708991441927,-229.23019617,0.00019452,2]
[315368891,1708991441935,-500.0,0.00019452,2]
[315368892,1708991441944,-500.0,0.00019452,2]
[315368893,1708991441953,-500.0,0.00019452,2]
[315368894,1708991441962,-478.4437147,0.00019452,2]
[315368895,1708991441970,-225.36072718,0.00019452,2]
[315368896,1708991441979,-500.0,0.00019452,2]
[315368897,1708991441988,-1990.31,0.00019452,2]
[315368898,1708991441997,-500.0,0.00019452,2]
[315368899,1708991442006,-185.15827025,0.00019452,2]
[315368900,1708991442016,-500.0,0.00019452,2]
[315368901,1708991442025,-527.5632554,0.00019452,2]
[315368902,1708991442034,-1507.9,0.00019452,2]
[315368903,1708991442043,-500.0,0.00019452,2]
[315368904,1708991442052,-500.0,0.00019452,2]
[315368905,1708991442061,-500.0,0.00019452,2]
[315368906,1708991442070,-570.32,0.00019452,2]
[315368907,1708991442079,-7320.56,0.00019452,2]
[315368908,1708991442088,-1772.46,0.00019452,2]
[315368909,1708991442097,-3218.84,0.00019452,2]
[315368910,1708991442106,-470.0,0.00019452,2]
[315368911,1708991442116,-16401.92,0.00019452,2]
[315368912,1708991442125,-500.0,0.00019452,2]
[315368913,1708991442134,-500.0,0.00019452,2]
[315368914,1708991442143,-500.0,0.00019452,2]
[315368915,1708991442153,-500.0,0.00019452,2]
[315368916,1708991442162,-949.56,0.00019452,2]
[315368917,1708991442172,-500.0,0.00019452,2]
[315368918,1708991442181,-2549.21,0.00019452,2]
[315368919,1708991442190,-500.0,0.00019452,2]
[315368920,1708991442200,-3092.23,0.00019452,2]
[315368921,1708991442208,-500.0,0.00019452,2]
[315368922,1708991442217,-3493.17,0.00019452,2]
[315368923,1708991442227,-500.0,0.00019452,2]
[315368924,1708991442236,-166.666666,0.00019627,2]
[315368925,1708991442248,-717.78,0.00019724,2]
[315368926,1708991442257,-243.58118859,0.00019725,2]
[315368927,1708991442267,-500.0,0.00019725,2]
[315368928,1708991442276,-500.0,0.00019725,2]
[315368929,1708991442285,-500.0,0.00019725,2]
[315368930,1708991442294,-500.0,0.00019725,2]
[315368931,1708991442303,-500.0,0.00019725,2]
[315368932,1708991442312,-500.0,0.00019725,2]
[315368933,1708991442321,-500.0,0.00019725,2]
[315368934,1708991442330,-500.0,0.00019725,2]
[315368935,1708991442339,-500.0,0.00019725,2]
[315368936,1708991442348,-500.0,0.00019725,2]
[315368937,1708991442357,-256.44210122,0.00019725,2]
[315368938,1708991442366,-717.78,0.00019725,2]
[315368939,1708991442375,-500.0,0.00019726,2]
[315368940,1708991442385,-500.0,0.00019726,2]
[315368941,1708991442393,-500.0,0.00019726,2]
[315368942,1708991442402,-665.88,0.00019726,2]
[315368943,1708991442411,-1101.12,0.00019726,2]
[315368944,1708991442420,-500.0,0.00019726,2]
[315368945,1708991442429,-500.0,0.00019726,2]
[315368946,1708991442438,-500.0,0.00019726,2]
[315368947,1708991442447,-500.0,0.00019726,2]
[315368948,1708991442456,-1147.54,0.00019726,2]
[315368949,1708991442465,-550.55,0.00019726,2]
[315368950,1708991442474,-500.0,0.00019726,2]
[315368951,1708991442483,-500.0,0.00019726,2]
[315368952,1708991442492,-500.0,0.00019726,2]
[315368953,1708991442501,-1635.36,0.00019726,2]
[315368954,1708991442511,-500.0,0.00019726,2]
[315368955,1708991442520,-626.71,0.00019726,2]
[315368956,1708991442529,-285.47079158,0.00019726,2]
[315368957,1708991442538,-500.0,0.00019726,2]
[315368958,1708991442553,-280.33700149,0.00019726,2]
[315368959,1708991442562,-500.0,0.00019726,2]
[315368960,1708991442572,-500.0,0.00019726,2]
[315368961,1708991442583,-290.39303171,0.00019726,2]
[315368962,1708991442592,-500.0,0.00019726,2]
[315368963,1708991442601,-500.0,0.00019726,2]
[315368964,1708991442610,-500.0,0.00019726,2]
[315368965,1708991442620,-1105.83,0.00019726,2]
[315368966,1708991442629,-500.0,0.00019726,2]
[315368967,1708991442638,-254.49018952,0.00019726,2]
[315368968,1708991442648,-500.0,0.00019726,2]
[315368969,1708991442657,-1430.55,0.00019726,2]
[315368970,1708991442666,-1938.41,0.00019726,2]
[315368971,1708991442675,-500.0,0.00019726,2]
[315368972,1708991442684,-1137.86,0.00019726,2]
[315368973,1708991442693,-500.0,0.00019726,2]
[315368974,1708991442702,-500.0,0.00019726,2]
[315368975,1708991442711,-557.07689794,0.00019726,2]
[315368976,1708991442719,-1224.94,0.00019726,2]
[315368977,1708991442728,-500.0,0.00019726,2]
[315368978,1708991442737,-500.0,0.00019726,2]
[315368979,1708991442746,-500.0,0.00019726,2]
[315368980,1708991442755,-793.97,0.00019726,2]
[315368981,1708991442765,-503.40024603,0.00019726,2]
[315368982,1708991442774,-1937.49,0.00019726,2]
[315368983,1708991442783,-500.0,0.00019726,2]
[315368984,1708991442792,-500.0,0.00019726,2]
[315368985,1708991442801,-325.82093239,0.00019726,2]
[315368986,1708991442809,-500.0,0.00019726,2]
[315368987,1708991442819,-394.19851739,0.00019726,2]
[315368988,1708991442828,-500.0,0.00019726,2]
[315368989,1708991442837,-500.0,0.00019726,2]
[315368990,1708991442846,-611.7,0.00019726,2]
[315368991,1708991442855,-9518.34,0.00019726,2]
[315368992,1708991442864,-500.0,0.00019726,2]
[315368993,1708991442873,-500.0,0.00019726,2]
[315368994,1708991442883,-1106.32,0.00019726,2]
[315368995,1708991442893,-3224.58,0.00019726,2]
[315368996,1708991442902,-502.38633586,0.00019726,2]
[315368997,1708991442911,-604.59,0.00019726,2]
[315368998,1708991442920,-500.0,0.00019726,2]
[315368999,1708991442929,-504.38560451,0.00019726,2]
[315369000,1708991442938,-500.0,0.00019726,2]
[315369001,1708991442946,-500.0,0.00019726,2]
[315369002,1708991442955,-2615.28,0.00019726,2]
[315369003,1708991442964,-500.0,0.00019726,2]
[315369004,1708991442974,-1643.98,0.00019726,2]
[315369005,1708991442983,-534.34,0.00019726,2]
[315369006,1708991442991,-500.0,0.00019726,2]
[315369007,1708991443001,-1968.58,0.00019726,2]
[315369008,1708991443010,-500.0,0.00019726,2]
[315369009,1708991443019,-1000.0,0.00019726,2]
[315369010,1708991443029,-500.0,0.00019726,2]
[315369011,1708991443038,-500.0,0.00019726,2]
[315369012,1708991443047,-579.17,0.00019726,2]
[315369013,1708991443057,-2347.07,0.00019726,2]
[315369014,1708991443066,-1815.9,0.00019726,2]
[315369015,1708991443075,-500.0,0.00019726,2]
[315369016,1708991443085,-17108.01,0.00019726,2]
[315369017,1708991443094,-500.0,0.00019726,2]
[315369019,1708991443103,-500.0,0.00019726,2]
[315369020,1708991443112,-500.0,0.00019726,2]
[315369021,1708991443121,-500.0,0.00019726,2]
[315369023,1708991443130,-500.0,0.00019726,2]
[315369025,1708991443139,-500.0,0.00019726,2]
[315369027,1708991443148,-1990.31,0.00019726,2]
[315369028,1708991443157,-500.0,0.00019726,2]
[315369029,1708991443166,-500.0,0.00019726,2]
[315369030,1708991443175,-1507.9,0.00019726,2]
[315369031,1708991443184,-500.0,0.00019726,2]
[315369033,1708991443193,-500.0,0.00019726,2]
[315369035,1708991443201,-172.04761987,0.00019726,2]
[315369036,1708991443210,-570.32,0.00019726,2]
[315369037,1708991443220,-7320.56,0.00019726,2]
[315369038,1708991443229,-1772.46,0.00019726,2]
[315369039,1708991443238,-3218.84,0.00019726,2]
[315369040,1708991443246,-16401.92,0.00019726,2]
[315369041,1708991443256,-500.0,0.00019726,2]
[315369042,1708991443265,-500.0,0.00019726,2]
[315369043,1708991443274,-949.56,0.00019726,2]
[315369044,1708991443282,-420.38233181,0.00019726,2]
[315369045,1708991443291,-2549.21,0.00019726,2]
[315369046,1708991443301,-500.0,0.00019726,2]
[315369047,1708991443310,-3092.23,0.00019726,2]
[315369049,1708991443319,-3493.17,0.00019726,2]
[315369051,1708991443328,-500.0,0.00019726,2]
[315369052,1708991443337,-328.8845409,0.00019739,2]
[315369053,1708991443346,-8230.24916882,0.0001989,2]
[315369054,1708991443355,-2463.51589491,0.000199,2]
[315369055,1708991443364,-717.78,0.00019997,2]
[315369056,1708991443373,-717.78,0.00019999,2]
[315369057,1708991443382,-717.78,0.00019999,2]
[315369058,1708991443391,-467.8716585,0.00019999,2]
[315369059,1708991443400,-500.0,0.00019999,2]
[315369060,1708991443409,-500.0,0.00019999,2]
[315369061,1708991443418,-500.0,0.00019999,2]
[315369063,1708991443427,-489.76043384,0.00019999,2]
[315369064,1708991443436,-500.0,0.00019999,2]
[315369066,1708991443445,-500.0,0.00019999,2]